Cogmind - Beta 16 @@@ ROGUE MODE // 2025.10.25 @ 10:48:52 Player: KeKe Result: Destroyed by Autobeam Turret with Autobeam Performance ------------- Evolutions (0) 0 Regions Visited (2) 400 Robots Destroyed (30) 150 Value Destroyed (923) 923 Prototype IDs (0) 0 Alien Tech Used (0) 0 Bonus (43) 43 TOTAL SCORE: 1516 Bonus ------- High Alert Combat Kills 43 Cogmind --------- Core Integrity 0/250 Matter 265/300 Energy 200/200 System Corruption 0% Temperature Cool (16) Movement Core (200) Ox3 Location -10/Subcaves Parts ------- > --- POWER (1) -------- Subdweller Power Source > --- PROPULSION (2) --- (None) > --- UTILITY (2) ------ (None) > --- WEAPON (2) ------- Makeshift Laser Grenade Launcher > --- INVENTORY (5) ---- Subdweller Monowheel High-capacity Matter Pod (200) Makeshift Hacking Suite Makeshift Hammer Piercing Trap Peak State ------------ > --- POWER ------------ Subdweller Power Source > --- PROPULSION ------- Subdweller Monowheel Subdweller Monowheel > --- UTILITY ---------- Scrap Shield > --- WEAPON ----------- Makeshift Laser Makeshift Hammer > --- INVENTORY -------- High-capacity Matter Pod Makeshift Hacking Suite Grenade Launcher Piercing Trap [Rating: 18] Favorites ----------- Power Light Ion Engine Engine Light Ion Engine Propulsion Compact Wheel Leg Aluminum Leg Wheel Compact Wheel Utility Large Storage Unit Device Subdweller Optics Storage Large Storage Unit Processor Visual Processing Unit Protection Scrap Shield Weapon Grenade Launcher Energy Gun Makeshift Laser Ballistic Gun Light Assault Rifle Launcher Grenade Launcher Impact Weapon Makeshift Hammer Build | -11 -10 -10 ------- Run | Yrd Mat Sub Slots Evolved . | . . . Power . | . . . Propulsion . | . . . Utility . | . . . Weapon . | . . . Parts Attached 19 | . 9 10 Power 2 | . . 2 Engine 2 | . . 2 Core . | . . . Reactor . | . . . Propulsion 4 | . 2 2 Treads . | . . . Leg . | . . . Wheel 4 | . 2 2 Hover . | . . . Flight . | . . . Utility 4 | . 2 2 Device 1 | . . 1 Storage 1 | . 1 . Processor 1 | . 1 . Hackware . | . . . Protection 1 | . . 1 Artifact . | . . . Weapon 9 | . 5 4 Energy Gun 1 | . . 1 Energy Cannon . | . . . Ballistic Gun . | . . . Ballistic Cannon . | . . . Launcher 6 | . 5 1 Special Weapon . | . . . Impact Weapon 2 | . . 2 Slashing Weapon . | . . . Piercing Weapon . | . . . Special Melee Weapon . | . . . Unidentified Prototypes . | . . . Parts Lost 9 | . . 9 Power 2 | . . 2 Propulsion 2 | . . 2 Utility 2 | . . 2 Weapon 3 | . . 3 Highest Loss Streak 3 | . . 3 To Critical Strikes . | . . . Average Backups 5 | . 7 4 Power . | . 1 . Propulsion . | . 1 . Utility 1 | . . 2 Weapon 2 | . 3 2 Tool/Special . | . . . Unused Backups 7 | . 2 5 Power . | . . . Propulsion 1 | . . 1 Utility 5 | . 2 3 Weapon 1 | . . 1 Tool/Special . | . . . Average Slot Usage (%) 80 | . 96 70 Engine 12 | . 14 11 Leg 4 | . 12 . Wheel 15 | . 15 14 Device 1 | . . 1 Storage 8 | . 14 5 Processor 4 | . 11 . Protection 5 | . . 8 Energy Gun 6 | . 1 9 Launcher 13 | . 24 6 Impact Weapon 6 | . . 10 Peak Build Rating 18 | . 9 18 Average Rating 10 | . 7 11 On Entrance 7 | 6 6 9 Avg Prop Armor Cover (%) 1 | . . 1 Naked Turns . | . . . Heaviest Build 31 | 10 29 31 Greatest Support 40 | 20 26 40 Greatest Overweight (x) 9 | . 1 9 Average Overweight (x) 1 | . . 1 Largest Inventory Capacity 15 | . 15 15 Average Capacity 9 | . 11 8 Most Carried 8 | . 8 8 Average Carried 5 | . 7 5 Final Capacity 15 | 8 15 5 Final Carried 8 | 6 8 5 Class Distribution -------------------- 89% | Mutant 10% | Subdweller-Mutant Dominant Class ---------------- Mutant | -10/Materials Mutant | -10/Subcaves Resources | -11 -10 -10 ----------- Run | Yrd Mat Sub Matter Collected 891 | 200 130 561 Remotely . | . . . Salvage Created 533 | . 330 203 Parts 49 | . 28 21 Haulers Intercepted . | . . . Recyclers Shooed 1 | . 1 . Parts Field Recycled . | . . . Retrieved Matter . | . . . Parts Self-Destructed 10 | . . 10 Prevented . | . . . Parts Restored . | . . . Kills | -11 -10 -10 ------- Run | Yrd Mat Sub Combat Hostiles Destroyed 26 | . 14 12 Guns 3 | . 1 2 AOE 22 | . 13 9 Classes Destroyed 7 | . 5 2 Recycler 1 | . 1 . Operator 1 | . 1 . Watcher 2 | . 2 . Swarmer 9 | . 3 6 Grunt 12 | . 11 1 Sentry 1 | . . 1 Subdweller 4 | . . 4 Best Kill Streak 5 | . 4 5 Combat Bots Only 5 | . 3 5 Max Kills in Single Turn 3 | . 3 2 Gunslinging . | . . . Exploded 3 | . 3 2 Melee . | . . . Uniques/NPCs Destroyed . | . . . Combat | -11 -10 -10 -------- Run | Yrd Mat Sub Hostile Shots Fired 121 | . 19 102 Missed 40 | . 8 32 Hits 81 | . 11 70 Projectile 81 | . 11 70 Damage Taken 1186 | . 219 967 Core 250 | . 38 212 Absorbed by Shields . | . . . Core Remaining (%) 100 | 100 . . Volleys Fired 49 | . 17 32 Largest 2 | . 2 2 Hottest 80 | . 60 80 Shots Fired 74 | . 31 43 Gun 38 | . 16 22 Cannon . | . . . Launcher 36 | . 15 21 Special . | . . . Kinetic 11 | . 11 . Thermal 27 | . 5 22 Explosive 36 | . 15 21 Electromagnetic . | . . . Robot Hit Streak 16 | . 2 16 Robot Miss Streak 3 | . 3 2 Penetration Max . | . . . Secondary Targets . | . . . Shots Hit Robots 46 | . 7 39 Core Hits 46 | . 28 18 Critical Kills . | . . . Critical Parts Destroyed . | . . . Critical Strikes 2 | . . 2 Burn 2 | . . 2 Melee Attacks 8 | . . 8 Impact 8 | . . 8 Slashing . | . . . Piercing . | . . . Sneak Attacks . | . . . Combat Hostiles . | . . . Follow-up Attacks . | . . . Damage Inflicted 2440 | . 1191 1249 Guns 363 | . 43 320 Cannons . | . . . Explosions 1927 | . 1148 779 Melee 150 | . . 150 Ramming . | . . . Kinetic 43 | . 43 . Thermal 837 | . 517 320 Explosive 1410 | . 631 779 Electromagnetic . | . . . Impact 150 | . . 150 Slashing . | . . . Piercing . | . . . Highest Corruption . | . . . Average Corruption . | . . . Corruption Purged . | . . . Corruption Blocked . | . . . Overload Shots . | . . . Overflow Damage 95 | . 23 72 Projectiles . | . . . Explosions 65 | . 23 42 Melee 30 | . . 30 Knockbacks . | . . . Impact . | . . . Kinetic . | . . . Secondary . | . . . Self-Inflicted Damage 134 | . 94 40 Shots 3 | . 2 1 Rammed . | . . . Targets Rammed . | . . . Kicked . | . . . Crushed . | . . . Highest Temperature 38 | . 38 8 Average Temperature 16 | . 17 5 Received Heat Transfer 360 | . 66 294 Siege Activations . | . . . Martial Activations . | . . . Shielding Activations . | . . . Robots Disrupted . | . . . Combat Hostiles . | . . . Robots Corrupted 1 | . . 1 Combat Hostiles 1 | . . 1 Parts Fried . | . . . Impact Corruptions 3 | . . 3 Robots Melted . | . . . Combat Hostiles . | . . . Parts Melted 4 | . . 4 Heat Transferred 1151 | . 300 851 Parts Sabotaged . | . . . Parts Stolen . | . . . Parts Stripped . | . . . Power Chain Reactions . | . . . Alert | -11 -10 -10 ------- Run | Yrd Mat Sub Maximum Alert Level 2 | . 2 . Low Security (%) 5 | . 5 . Level 1 62 | . 62 . Level 2 31 | . 31 . Level 3 . | . . . Level 4 . | . . . Level 5 . | . . . High Security . | . . . Max Security . | . . . Peak Influence 485 | . 485 . Initial . | . . . Average 360 | . 360 . Influence Increases 905 | . 705 200 Destroy 0b10 Robot/C 440 | . 280 160 Destroy 0b10 Robot/NC 20 | . 20 . Destroy Leader 64 | . 54 10 Successful Hack 6 | . 6 . Disable Machine 210 | . 210 . Destroy Structure 120 | . 120 . Lose Combat Pursuer 45 | . 15 30 Influence Decreases 851 | . 252 599 Entered New Map 218 | . . 218 Time Decay 543 | . 252 291 Lost Part 90 | . . 90 Squads Dispatched 2 | . 2 . Investigation 2 | . 2 . Extermination . | . . . Reinforcement . | . . . Assault . | . . . Garrison . | . . . Intercept . | . . . Searches Triggered . | . . . Construction Impeded . | . . . Haulers Reinforced . | . . . Active Scanning Responses . | . . . Cargo Convoy Interrupts . | . . . Stealth | -11 -10 -10 --------- Run | Yrd Mat Sub Distress Signals . | . . . Communications Jammed . | . . . Distress Signals . | . . . Times Spotted 37 | . 21 16 Peak Tracking Total 6 | . 3 6 Tactical Retreats 2 | . 1 1 Traps | -11 -10 -10 ------- Run | Yrd Mat Sub Traps Triggered 3 | . 2 1 Indirectly . | . . . Trap Hack Attempts . | . . . Triggered . | . . . Disarmed . | . . . Reprogrammed . | . . . Reused 1 | . . 1 Traps Extracted . | . . . Installed 1 | . . 1 Triggered . | . . . Most Traps Carried 1 | . . 1 Machines | -11 -10 -10 ---------- Run | Yrd Mat Sub Machines Disabled 15 | . 14 1 Max in Single Turn 12 | . 12 1 Machines Repaired . | . . . Machines Dismantled . | . . . Machines Sabotaged . | . . . Overloaded Fab Kills . | . . . Hacking | -11 -10 -10 --------- Run | Yrd Mat Sub Machines Accessed 6 | . 6 . Terminals 6 | . 6 . Fabricators . | . . . Repair Stations . | . . . Recycling Units . | . . . Scanalyzers . | . . . Garrison Access . | . . . Total Hacks 8 | . 8 . Successful 6 | . 6 . Failed 2 | . 2 . Catastrophic . | . . . Database Lockouts . | . . . Manual 8 | . 8 . Terminals 8 | . 8 . Fabricators . | . . . Repair Stations . | . . . Recycling Units . | . . . Scanalyzers . | . . . Garrison Access . | . . . Terminal Hacks . | . . . Fabricator Hacks . | . . . Repair Station Hacks . | . . . Recycling Unit Hacks . | . . . Scanalyzer . | . . . Garrison Access Hacks . | . . . Unauthorized Hacks 6 | . 6 . Terminals 6 | . 6 . Botnet 6 | . 6 . Fabricators . | . . . Repair Stations . | . . . Recycling Units . | . . . Scanalyzers . | . . . Garrison Access . | . . . Data Cores Recovered 1 | . 1 . Used 1 | . 1 . Hacking Detections 3 | . 3 . Full Trace Events . | . . . Feedback Events . | . . . Feedback Blocked . | . . . Robot Schematics Acquired . | . . . Robots Built . | . . . Authchips . | . . . Time . | . . . Total Robot Build Rating . | . . . Part Schematics Acquired . | . . . Parts Built . | . . . Authchips . | . . . Time . | . . . Total Part Build Rating . | . . . Part Studies Acquired . | . . . Parts Repaired . | . . . Time . | . . . Parts Recycled . | . . . Recycled Matter . | . . . Retrieved Matter . | . . . Retrieved Components . | . . . Parts Scanalyzed . | . . . Part Schematics Acquired . | . . . Parts Damaged . | . . . Bothacking | -11 -10 -10 ------------ Run | Yrd Mat Sub Used RIF Installer . | . . . Robots Hacked . | . . . Non-combat . | . . . Combat . | . . . Robot Hacks Applied . | . . . Relay Couplers Released . | . . . Fabnet Peak Effective % . | . . . Robots Rewired . | . . . Allies Hacked . | . . . Hacks Repelled . | . . . Allies | -11 -10 -10 -------- Run | Yrd Mat Sub Total Allies . | . . . Largest Group . | . . . Highest-Rated Group . | . . . Highest-Rated Ally . | . . . Total Orders . | . . . Ally Attacks . | . . . Total Damage . | . . . Kills . | . . . Allies Corrupted . | . . . Allies Melted . | . . . Intel | -11 -10 -10 ------- Run | Yrd Mat Sub Active Infowar (turns) 631 | . 459 172 Optics 631 | . 459 172 Robot Analysis Total . | . . . Derelict Logs Recovered 1 | . . 1 Drone Launches . | . . . Drone Recoveries . | . . . Exploration | -11 -10 -10 ------------- Run | Yrd Mat Sub Turns Passed 1580 | . 573 1007 Spaces Moved 918 | 1 375 542 Core 70 | . . 70 Treads . | . . . Legs 161 | 1 160 . Wheels 687 | . 215 472 Hover . | . . . Flight . | . . . Fastest Speed 90 | 120 90 90 Average Speed 140 | 120 110 161 Slowest Speed 500 | 120 120 500 Overloaded Moves . | . . . Propulsion Burnouts . | . . . Robots Hopped . | . . . Potential Cave-ins . | . . . Cave-ins Triggered . | . . . Exploration Rate (%) 39 | 2 73 42 Regions Visited 2 Branch Regions 1 Pre-discovered Areas 1 | . . 1 Known Exits Taken . | . . . Unknown Exits Taken 2 | 1 1 . Scrap Searched 6 | . . 6 Spaces Dug . | . . . Terrain Destroyed 203 | . 129 74 Melee . | . . . Projectile . | . . . AOE 203 | . 129 74 Terrain Rammed . | . . . Walls Destroyed . | . . . Machines Disabled . | . . . Actions | -11 -10 -10 --------- Run | Yrd Mat Sub Total 1125 | . 507 618 Wait 93 | . 91 2 Move 916 | . 374 542 Hop . | . . . Pick Up 13 | . 6 7 Fast Attach 8 | . 3 5 Attach 6 | . 2 4 Detach . | . . . Swap 6 | . 4 2 Drop 21 | . 10 11 Fire 49 | . 17 32 Melee 8 | . . 8 Ram . | . . . Kick . | . . . Crush . | . . . Escape Stasis . | . . . Rewire . | . . . Trap 1 | . . 1 Miscellaneous 4 | . . 4 Route ------- -11/Scrapyard -10/Materials (discovered 4 exits: [*Mat x2] / [*Min] / [*Sub]) -10/Subcaves (discovered 3 exits: [*Mat x2] / [*Rec]) History --------- Turn | Location | Event 1 | -11/Scrapyard | Discovered new exit (range 0) 1 | -11/Scrapyard | Entered Materials 93 | -10/Materials | Discovered new exit (range 16) 141 | -10/Materials | Discovered new exit (range 17) 306 | -10/Materials | Build established: Mutant 318 | -10/Materials | Discovered new exit (range 16) 568 | -10/Materials | Discovered new exit (range 4) 574 | -10/Materials | Entered Subcaves 614 | -10/Subcaves | Ambushed by Subdweller buried in earth 618 | -10/Subcaves | Ambushed by Subdweller buried in earth 657 | -10/Subcaves | Lost 3 parts (1p1u1w) 710 | -10/Subcaves | A swath of the cavern ceiling suddenly collapsed 776 | -10/Subcaves | Discovered new exit (range 5) 853 | -10/Subcaves | Lost 3 parts (1n2w) 943 | -10/Subcaves | Core integrity fell below 50% 1052 | -10/Subcaves | Learned Materials emergency access door positions 1114 | -10/Subcaves | Discovered new exit (range 10) 1359 | -10/Subcaves | Learned location of Zion (-6) 1359 | -10/Subcaves | Met a Zionite searching for "candidates" 1570 | -10/Subcaves | Core integrity fell below 20% 1573 | -10/Subcaves | Discovered new exit (range 14) 1581 | -10/Subcaves | Destroyed by Autobeam Turret with Autobeam Last Messages --------------- 01107_ Acquired Sub. Monowheel. 01109_ Scrap Shield Fragment affixed to Scrap Shield (+48). 01114_ EXIT=FOUND 01123_ Sub. Monowheel shoots sparks and powers down. 01231_ Dropped Broken Sub. Monowheel. 01235_ Subatomizers dissect the Broken Sub. Monowheel. 01293_ V5-VUJ(z): "She is not going to be happy we haven't found any suitable candidates yet." 01319_ Subatomizers dissect the Broken Sub. Monowheel. 01359_ V5-VUJ(z): "Hey you! It's really dangerous down here, I feel that you could die at any moment. For your health and safety might I suggest a trip to Zion?" World map updated: -6/Zion. 01573_ EXIT=FOUND 01573_ S-10 Pest destroyed. 01576_ Destroyed Flight Unit. 01576_ S-10 Pest destroyed. 01578_ Scrap Shield destroyed. 01579_ Flight Unit fries itself beyond repair. 01581_ Lgt. Ion Engine fries itself beyond repair. Map ----- +----------------------------------------------------+ | ?????????????????????????????????????????????????? | | ?????????????????????????????????????????????????? | | ?????????????????????????????????????????????????? | | ?????????????????????????????????????????????????? | | ?????????????????????????????????????????????????? | | ?????????????????????????????????????????????????? | | ?????????????????????????????????????????????????? | | ????????????????????????????????????????########?? | | ???????????????????????????????????????## ##? | | ???????????????????????????????????????# #? | | ???????????????????????????????????????# ##? | | ???????????????????????????????????????## ##?? | | ?????????????????? ???????????????????# ##### | | ????????????????# ???????????????????# ## | | ??????????????## ??????#???????????# | | ?????????????? ?????#"#??????????### | | ????????????? ##### ?????????## | | ?????????????# "???????### | | ?????????????# "??????## | | ??????????????# ""??????# ## # | | ???????????????# ""#??????# ## ## | | ???????????????? """#?####??## ##? | | ?????????????????? "" #?## ###### #?? | | ????????????????????# "### ## ## #?? | | ?????????????????????# " # #?? | | ?????????????????????# @ "" #?? | | ?????????????????????# ##? | | ?????????????????????# [ ## ## ## | | ???????????????????? ### ### | | ?????????????????? * #?# #?#### | | ?????????????????### %[ #?## #???## | | ???????????????????## #??######????###### | | ???????????????????? ???????????????# | | ??????????????????? ???????????????# | | ??????????????????# ???????????????## | | ??????????????????#" t t ???????????????# ## | | ??????????????????#" " " ???????????????## ### | | ???????????????????"""" """???????????????# #?? | | ??????????????????????#